fUST/lending_fUST_20250603
["ID","MTS","AMOUNT","RATE_DAILY","PERIOD"]
[363888740,1748911847554,-492.92,0.00019452,2]
[363888741,1748911847564,-440.0,0.00019452,2]
[363888742,1748911847574,-440.0,0.00019452,2]
[363888743,1748911847584,-907.43,0.00019452,2]
[363888744,1748911847594,-479.97,0.00019452,2]
[363888745,1748911847604,-765.6,0.00019452,2]
[363888746,1748911847614,-524.72,0.00019452,2]
[363888747,1748911847624,-1128.87,0.00019452,2]
[363888748,1748911847634,-880.74,0.00019452,2]
[363888749,1748911847644,-582.88,0.00019452,2]
[363888750,1748911847654,-440.0,0.00019452,2]
[363888751,1748911847663,-440.0,0.00019452,2]
[363888752,1748911847673,-501.38,0.00019452,2]
[363888753,1748911847683,-440.0,0.00019452,2]
[363888754,1748911847693,-603.63,0.00019452,2]
[363888755,1748911847703,-632.15,0.00019452,2]
[363888756,1748911847712,-890.73,0.00019452,2]
[363888757,1748911847722,-440.0,0.00019452,2]
[363888758,1748911847732,-440.0,0.00019452,2]
[363888759,1748911847742,-440.0,0.00019452,2]
[363888760,1748911847752,-440.0,0.00019452,2]
[363888761,1748911847762,-422.70042412,0.00019452,2]
[363888762,1748911847772,-1719.07,0.00019452,2]
[363888763,1748911847781,-1636.64,0.00019452,2]
[363888764,1748911847790,-632.4,0.00019452,2]
[363888765,1748911847800,-301.73177124,0.00019506,2]
[363888766,1748911847810,-722.8002381,0.00019555,2]
[363888767,1748911847820,-261.474,0.00019626,2]
[363888768,1748911847829,-587.0,0.0001963,2]
[363888769,1748911847840,-500.0,0.0001964,2]
[363888770,1748911847849,-600.0,0.0001964,2]
[363888771,1748911847859,-500.0,0.0001964,2]
[363888772,1748911847868,-500.0,0.00019675,2]
[363888773,1748911847878,-440.0,0.00019726,2]
[363888774,1748911847888,-492.92,0.00019726,2]
[363888775,1748911847897,-440.0,0.00019726,2]
[363888776,1748911847908,-871.72465298,0.00019726,2]
[363888780,1748911848048,-318.03,0.0001726,2]
[363888782,1748911848057,-35.70534702,0.00019726,2]
[363888784,1748911848067,-139.78823847,0.00019726,2]
[363888786,1748911848079,-296.49254106,0.00019726,2]
[363888788,1748911848089,-479.97,0.00019726,2]
[363888790,1748911848098,-765.6,0.00019726,2]
[363888792,1748911848108,-35.80930348,0.00019726,2]
[363888857,1748911848788,-440.0,0.00016438,2]
[363888858,1748911848799,-440.0,0.00016438,2]
[363888859,1748911848808,-440.0,0.00016438,2]
[363888861,1748911848818,-440.0,0.00016438,2]
[363888863,1748911848829,-440.0,0.00016712,2]
[363888864,1748911848839,-420.0,0.00016712,2]
[363888865,1748911848848,-440.0,0.00016712,2]
[363888866,1748911848858,-440.0,0.00016986,2]
[363888867,1748911848868,-440.0,0.00016986,2]
[363888868,1748911848878,-440.0,0.0001726,2]
[363888869,1748911848887,-440.0,0.0001726,2]
[363888870,1748911848897,-440.0,0.00017534,2]
[363888871,1748911848907,-440.0,0.00017808,2]
[363888872,1748911848918,-440.0,0.00018082,2]
[363888874,1748911848927,-440.0,0.00018356,2]
[363888876,1748911848937,-440.0,0.0001863,2]
[363888878,1748911848947,-440.0,0.00018904,2]
[363888880,1748911848957,-500.0,0.00019177,2]
[363888882,1748911848966,-311.56176754,0.00019177,2]
[363888884,1748911848976,-500.0,0.00019177,2]
[363888886,1748911848985,-500.0,0.00019177,2]
[363888888,1748911848995,-500.0,0.00019177,2]
[363888890,1748911849004,-500.0,0.00019177,2]
[363888892,1748911849014,-500.0,0.00019177,2]
[363888894,1748911849023,-500.0,0.00019178,2]
[363888896,1748911849032,-500.0,0.00019178,2]
[363888898,1748911849042,-249.45456222,0.00019178,2]
[363888900,1748911849051,-500.0,0.00019178,2]
[363888902,1748911849060,-500.0,0.00019178,2]
[363888904,1748911849070,-500.0,0.00019178,2]
[363888906,1748911849079,-500.0,0.00019178,2]
[363888908,1748911849089,-500.0,0.00019178,2]
[363888909,1748911849098,-500.0,0.00019178,2]
[363888911,1748911849109,-500.0,0.00019178,2]
[363888913,1748911849119,-440.0,0.00019178,2]
[363888915,1748911849129,-440.0,0.00019452,2]
[363888917,1748911849138,-488.91069652,0.00019726,2]
[363888920,1748911849149,-1128.87,0.00019726,2]
[363888921,1748911849159,-880.74,0.00019726,2]
[363888923,1748911849169,-582.88,0.00019726,2]
[363888925,1748911849179,-440.0,0.00019726,2]
[363888927,1748911849190,-440.0,0.00019726,2]
[363888929,1748911849200,-501.38,0.00019726,2]
[363888931,1748911849211,-440.0,0.00019726,2]
[363888933,1748911849220,-603.63,0.00019726,2]
[363888935,1748911849229,-632.15,0.00019726,2]
[363888937,1748911849240,-890.73,0.00019726,2]
[363888939,1748911849251,-440.0,0.00019726,2]
[363888941,1748911849260,-440.0,0.00019726,2]
[363888943,1748911849270,-440.0,0.00019726,2]
[363888945,1748911849280,-440.0,0.00019726,2]
[363888947,1748911849289,-1719.07,0.00019726,2]
[363888949,1748911849299,-242.34299674,0.00019726,2]
[363888951,1748911849314,-1394.29700326,0.00019726,2]
[363888953,1748911849323,-632.4,0.00019726,2]
[363888955,1748911849332,-440.0,0.00019726,2]
[363888957,1748911849341,-722.8002381,0.00019762,2]
[363888959,1748911849351,-500.0,0.00019773,2]
[363888961,1748911849360,-207.4,0.00019931,2]
[363888963,1748911849369,-500.0,0.00019931,2]
[363888965,1748911849379,-500.0,0.00019931,2]
[363888967,1748911849388,-500.0,0.00019931,2]
[363888969,1748911849398,-500.0,0.00019931,2]
[363888971,1748911849407,-500.0,0.00019931,2]
[363888973,1748911849416,-500.0,0.00019931,2]
[363888975,1748911849425,-500.0,0.00019931,2]
[363888977,1748911849435,-500.0,0.00019931,2]
[363888979,1748911849445,-500.0,0.00019931,2]
[363888981,1748911849456,-500.0,0.00019931,2]
[363888983,1748911849466,-500.0,0.00019931,2]
[363888985,1748911849476,-339.28755571,0.00019931,2]
[363888987,1748911849485,-800.0,0.00019964,2]
[363888989,1748911849495,-722.8002381,0.00019969,2]
[363888991,1748911849507,-440.0,0.0002,2]
[363888992,1748911849518,-440.0,0.0002,2]
[363888994,1748911849528,-907.43,0.0002,2]
[363888996,1748911849538,-479.97,0.0002,2]
[363888998,1748911849549,-765.6,0.0002,2]
[363889000,1748911849558,-524.72,0.0002,2]
[363889002,1748911849568,-1128.87,0.0002,2]
[363889004,1748911849578,-880.74,0.0002,2]
[363889006,1748911849588,-582.88,0.0002,2]
[363889008,1748911849599,-440.0,0.0002,2]
[363889011,1748911849609,-440.0,0.0002,2]
[363889012,1748911849619,-501.38,0.0002,2]
[363889014,1748911849630,-440.0,0.0002,2]
[363889016,1748911849640,-603.63,0.0002,2]
[363889018,1748911849651,-632.15,0.0002,2]
[363889021,1748911849662,-890.73,0.0002,2]
[363889022,1748911849672,-440.0,0.0002,2]
[363889024,1748911849682,-440.0,0.0002,2]
[363889026,1748911849692,-219.48549287,0.0002,2]
[363889028,1748911849702,-440.0,0.0002,2]
[363889030,1748911849714,-1719.07,0.0002,2]
[363889032,1748911849724,-1636.64,0.0002,2]
[363889034,1748911849734,-632.4,0.0002,2]
[363889036,1748911849743,-440.0,0.0002,2]
[363889038,1748911849752,-722.8002381,0.00020176,2]
[363889040,1748911849761,-223.541484,0.00020187,2]
[363889042,1748911849770,-1200.0,0.00020188,2]
[363889044,1748911849780,-1000.0,0.00020188,2]
[363889046,1748911849789,-177.6,0.00020273,2]
[363889048,1748911849799,-440.0,0.00020273,2]
[363889049,1748911849809,-907.43,0.00020273,2]
[363889050,1748911849818,-479.97,0.00020273,2]
[363889051,1748911849827,-765.6,0.00020273,2]
[363889052,1748911849836,-524.72,0.00020273,2]
[363889053,1748911849846,-1128.87,0.00020273,2]
[363889054,1748911849855,-880.74,0.00020273,2]
[363889055,1748911849865,-582.88,0.00020273,2]
[363889056,1748911849874,-440.0,0.00020273,2]
[363889057,1748911849884,-440.0,0.00020273,2]
[363889058,1748911849894,-501.38,0.00020273,2]
[363889059,1748911849903,-440.0,0.00020273,2]
[363889060,1748911849911,-603.63,0.00020273,2]
[363889061,1748911849920,-632.15,0.00020273,2]
[363889062,1748911849930,-890.73,0.00020273,2]
[363889063,1748911849938,-440.0,0.00020273,2]
[363889064,1748911849947,-440.0,0.00020273,2]
[363889065,1748911849959,-440.0,0.00020273,2]
[363889066,1748911849968,-1719.07,0.00020273,2]
[363889067,1748911849977,-1636.64,0.00020273,2]
[363889068,1748911849987,-632.4,0.00020273,2]
[363889069,1748911849996,-722.8002381,0.00020383,3]
[363889070,1748911850005,-440.0,0.00020547,2]
[363889071,1748911850014,-907.43,0.00020547,2]
[363889072,1748911850027,-479.97,0.00020547,2]
[363889073,1748911850036,-765.6,0.00020547,2]
[363889074,1748911850045,-524.72,0.00020547,2]
[363889075,1748911850055,-1128.87,0.00020547,2]
[363889077,1748911850065,-880.74,0.00020547,2]
[363889078,1748911850074,-582.88,0.00020547,2]
[363889080,1748911850083,-440.0,0.00020547,2]
[363889082,1748911850093,-490.62365067,0.00020547,2]
[363889084,1748911850102,-501.38,0.00020547,2]
[363889086,1748911850112,-518.18,0.00020547,2]
[363889088,1748911850121,-603.63,0.00020547,2]
[363889090,1748911850131,-632.15,0.00020547,2]
[363889092,1748911850140,-890.73,0.00020547,2]
[363889094,1748911850149,-440.0,0.00020547,2]
[363889096,1748911850159,-167.01117356,0.00020547,2]
[363889098,1748911850168,-453.2,0.00020547,2]
[363889100,1748911850177,-1719.07,0.00020547,2]
[363889102,1748911850187,-1636.64,0.00020547,2]
[363889104,1748911850197,-632.4,0.00020547,2]
[363889105,1748911850208,-722.8002381,0.0002059,3]
[363889108,1748911850218,-6972.77,0.000206,2]
[363889109,1748911850227,-500.0,0.00020659,2]
[363889111,1748911850237,-1584.09246953,0.00020736,2]
[363889113,1748911850247,-722.8002381,0.00020797,4]
[363889116,1748911850257,-440.0,0.00020821,2]
[363889118,1748911850268,-907.43,0.00020821,2]
[363889120,1748911850277,-479.97,0.00020821,2]
[363889122,1748911850287,-765.6,0.00020821,2]
[363889124,1748911850296,-524.72,0.00020821,2]
[363889126,1748911850307,-1128.87,0.00020821,2]
[363889128,1748911850316,-880.74,0.00020821,2]
[363889130,1748911850325,-582.88,0.00020821,2]
[363889132,1748911850335,-440.0,0.00020821,2]
[363889134,1748911850344,-501.38,0.00020821,2]
[363889136,1748911850353,-603.63,0.00020821,2]
[363889138,1748911850363,-632.15,0.00020821,2]
[363889140,1748911850372,-890.73,0.00020821,2]
[363889141,1748911850383,-440.0,0.00020821,2]
[363889143,1748911850393,-1719.07,0.00020821,2]
[363889145,1748911850402,-1636.64,0.00020821,2]
[363889147,1748911850411,-632.4,0.00020821,2]
[363889150,1748911850421,-301.73177124,0.00020953,2]
[363889152,1748911850431,-185.0,0.00021,3]
[363889154,1748911850440,-185.0,0.00021,3]
[363889155,1748911850450,-185.0,0.00021,2]
[363889157,1748911850460,-185.0,0.00021,2]
[363889159,1748911850470,-185.0,0.00021,2]
[363889161,1748911850478,-185.0,0.00021,3]
[363889163,1748911850488,-185.0,0.00021,5]
[363889165,1748911850497,-190.82557611,0.00021,5]
[363889167,1748911850509,-722.8002381,0.00021003,4]
[363889169,1748911850519,-800.0,0.0002106,2]
[363889171,1748911850528,-440.0,0.00021095,2]
[363889173,1748911850538,-907.43,0.00021095,2]
[363889175,1748911850547,-479.97,0.00021095,2]
[363889177,1748911850557,-765.6,0.00021095,2]
[363889179,1748911850567,-524.72,0.00021095,2]
[363889181,1748911850576,-1128.87,0.00021095,2]
[363889183,1748911850587,-880.74,0.00021095,2]
[363889185,1748911850597,-582.88,0.00021095,2]
[363889187,1748911850607,-440.0,0.00021095,2]
[363889190,1748911850617,-501.38,0.00021095,2]
[363889192,1748911850627,-603.63,0.00021095,2]
[363889194,1748911850636,-632.15,0.00021095,2]
[363889196,1748911850646,-890.73,0.00021095,2]
[363889198,1748911850655,-440.0,0.00021095,2]
[363889200,1748911850665,-1719.07,0.00021095,2]
[363889202,1748911850675,-1636.64,0.00021095,2]
[363889204,1748911850684,-632.4,0.00021095,2]
[363889205,1748911850693,-722.8002381,0.0002121,4]
[363889207,1748911850703,-215.0738,0.000213,2]
[363889210,1748911850714,-440.0,0.00021369,2]
[363889212,1748911850724,-907.43,0.00021369,2]
[363889214,1748911850733,-479.97,0.00021369,2]
[363889216,1748911850742,-765.6,0.00021369,2]
[363889218,1748911850752,-524.72,0.00021369,2]
[363889220,1748911850761,-1128.87,0.00021369,2]
[363889222,1748911850771,-880.74,0.00021369,2]
[363889224,1748911850780,-582.88,0.00021369,2]
[363889226,1748911850790,-444.87723939,0.00021369,2]
[363889228,1748911850800,-501.38,0.00021369,2]
[363889230,1748911850811,-603.63,0.00021369,2]
[363889232,1748911850820,-632.15,0.00021369,2]
[363889234,1748911850830,-890.73,0.00021369,2]
[363889236,1748911850840,-440.0,0.00021369,2]
[363889238,1748911850850,-1719.07,0.00021369,2]
[363889240,1748911850861,-1636.64,0.00021369,2]
[363889242,1748911850871,-632.4,0.00021369,2]
[363889244,1748911850880,-722.8002381,0.00021417,5]
[363889246,1748911850889,-823.0,0.00021452,2]
[363889248,1748911850898,-16335.0,0.000216,2]
[363889250,1748911850908,-722.8002381,0.00021624,5]
[363889252,1748911850917,-440.0,0.00021643,2]
[363889263,1748911851016,-907.43,0.00021643,2]
[363889265,1748911851027,-479.97,0.00021643,2]
[363889267,1748911851036,-765.6,0.00021643,2]
[363889269,1748911851045,-524.72,0.00021643,2]
[363889270,1748911851055,-1128.87,0.00021643,2]
[363889273,1748911851064,-880.74,0.00021643,2]
[363889274,1748911851074,-582.88,0.00021643,2]
[363889276,1748911851084,-501.38,0.00021643,2]
[363889278,1748911851094,-603.63,0.00021643,2]
[363889280,1748911851103,-632.15,0.00021643,2]
[363889282,1748911851113,-890.73,0.00021643,2]
[363889284,1748911851123,-440.0,0.00021643,2]
[363889286,1748911851133,-1719.07,0.00021643,2]
[363889288,1748911851143,-1636.64,0.00021643,2]
[363889290,1748911851152,-632.4,0.00021643,2]
[363889292,1748911851162,-442.30700441,0.00021692,2]
[363889294,1748911851172,-6972.77,0.000217,2]
[363889297,1748911851182,-722.8002381,0.00021831,6]
[363889299,1748911851192,-742.271441,0.00021872,3]
[363889301,1748911851203,-151.0,0.000219,3]
[363889303,1748911851214,-151.0,0.000219,2]
[363889305,1748911851224,-200.0,0.00021917,2]
[363889307,1748911851234,-500.0,0.00021917,2]
[363889309,1748911851245,-500.0,0.00021917,2]
[363889311,1748911851255,-500.0,0.00021917,2]
[363889313,1748911851265,-500.0,0.00021917,2]
[363889315,1748911851275,-500.0,0.00021917,2]
[363889317,1748911851285,-500.0,0.00021917,2]
[363889319,1748911851295,-500.0,0.00021917,2]
[363889321,1748911851304,-500.0,0.00021917,2]
[363889323,1748911851313,-500.0,0.00021917,2]
[363889325,1748911851322,-500.0,0.00021917,2]
[363889327,1748911851332,-500.0,0.00021917,2]
[363889329,1748911851341,-500.0,0.00021917,2]
[363889331,1748911851351,-430.38229896,0.00021917,2]
[363889333,1748911851360,-907.43,0.00021917,2]
[363889335,1748911851371,-479.97,0.00021917,2]
[363889337,1748911851380,-765.6,0.00021917,2]
[363889339,1748911851389,-524.72,0.00021917,2]
[363889341,1748911851398,-1128.87,0.00021917,2]
[363889343,1748911851408,-880.74,0.00021917,2]
[363889345,1748911851417,-582.88,0.00021917,2]
[363889346,1748911851427,-501.38,0.00021917,2]
[363889348,1748911851436,-603.63,0.00021917,2]
[363889350,1748911851446,-632.15,0.00021917,2]
[363889352,1748911851457,-890.73,0.00021917,2]
[363889355,1748911851467,-440.0,0.00021917,2]
[363889357,1748911851478,-1719.07,0.00021917,2]
[363889359,1748911851487,-1636.64,0.00021917,2]
[363889361,1748911851496,-632.4,0.00021917,2]
[363889363,1748911851507,-150.0,0.00021918,2]
[363889364,1748911851519,-500.0,0.00021918,2]
[363889367,1748911851529,-500.0,0.00021918,2]
[363889369,1748911851538,-500.0,0.00021918,2]
[363889371,1748911851548,-465.29007851,0.00021918,2]
[363889373,1748911851559,-500.0,0.00021918,2]
[363889375,1748911851568,-500.0,0.00021918,2]
[363889377,1748911851577,-500.0,0.00021918,2]
[363889378,1748911851588,-500.0,0.00021918,2]
[363889381,1748911851598,-500.0,0.00021918,2]
[363889382,1748911851608,-962.0,0.00021948,2]
[363889384,1748911851617,-708.0,0.00021948,2]
[363889386,1748911851626,-2226.0,0.00021948,2]
[363889388,1748911851636,-491.976,0.00021948,2]
[363889390,1748911851646,-405.0,0.00021948,2]
[363889392,1748911851655,-150.0,0.00021948,2]
[363889394,1748911851665,-178677.26186,0.00021999,2]
[363889396,1748911851674,-151.0,0.00021999,7]
[363889398,1748911851683,-584.293759,0.00021999,7]
[363889400,1748911851693,-151.0,0.00021999,7]
[363889402,1748911851703,-151.0,0.00021999,7]
[363889404,1748911851712,-151.0,0.00022,7]
[363889406,1748911851722,-584.293759,0.00022,7]
[363889408,1748911851732,-584.293759,0.00022,7]
[363889410,1748911851741,-151.0,0.00022,7]
[363889412,1748911851750,-151.0,0.00022,7]
[363889414,1748911851760,-151.0,0.00022,4]
[363889416,1748911851769,-185.0,0.00022,7]
[363889418,1748911851779,-185.0,0.00022,7]
[363889420,1748911851788,-185.0,0.00022,6]
[363889422,1748911851798,-185.0,0.00022,6]
[363889424,1748911851808,-172.0,0.00022,2]
[363889426,1748911851817,-364.4406513,0.00022027,2]
[363889429,1748911851828,-364.4406513,0.00022027,2]
[363889431,1748911851837,-364.06155,0.00022027,2]
[363889433,1748911851847,-363.2941736,0.00022027,2]
[363889434,1748911851857,-722.8002381,0.00022038,6]
[363889437,1748911851867,-160.48411345,0.0002211,2]
[363889439,1748911851876,-546.2439137,0.00022143,2]
[363889441,1748911851886,-800.0,0.00022156,2]
[363889443,1748911851896,-736.409739,0.00022191,7]
[363889445,1748911851906,-201.90870288,0.00022191,30]
[363889447,1748911851915,-517.07729411,0.00022191,2]
[363889449,1748911851924,-907.43,0.00022191,2]
[363889451,1748911851934,-479.97,0.00022191,2]
[363889453,1748911851943,-765.6,0.00022191,2]
[363889455,1748911851952,-524.72,0.00022191,2]
[363889457,1748911851961,-1128.87,0.00022191,2]
[363889459,1748911851970,-880.74,0.00022191,2]
[363889461,1748911851980,-582.88,0.00022191,2]
[363889463,1748911851989,-501.38,0.00022191,2]
[363889465,1748911851998,-603.63,0.00022191,2]
[363889467,1748911852008,-632.15,0.00022191,2]
[363889469,1748911852017,-890.73,0.00022191,2]
[363889471,1748911852027,-575.1,0.00022191,2]
[363889473,1748911852037,-151.0,0.00022191,7]
[363889475,1748911852046,-151.0,0.00022191,7]
[363889477,1748911852057,-1719.07,0.00022191,2]
[363889479,1748911852066,-1636.64,0.00022191,2]
[363889481,1748911852076,-247.061767,0.00022191,7]
[363889483,1748911852085,-632.4,0.00022191,2]
[363889485,1748911852094,-9749.98667892,0.00022198,7]
[363889487,1748911852104,-9749.98667892,0.00022198,7]
[363889489,1748911852116,-637.0,0.000222,2]
[363889491,1748911852126,-800.0,0.00022215,2]
[363889493,1748911852135,-800.0,0.00022224,2]
[363889495,1748911852145,-722.8002381,0.00022245,6]
[363889497,1748911852155,-160.48411345,0.00022247,2]
[363889499,1748911852165,-8291.15622639,0.000223,2]
[363889501,1748911852175,-151.0,0.000223,7]
[363889503,1748911852184,-151.0,0.000223,7]
[363889505,1748911852194,-151.0,0.000223,7]
[363889507,1748911852204,-155.0,0.000223,2]
[363889509,1748911852214,-151.0,0.000223,7]
[363889511,1748911852223,-547.022033,0.000223,2]
[363889513,1748911852233,-547.022033,0.000223,2]
[363889515,1748911852242,-176.5287595,0.00022301,2]
[363889517,1748911852252,-176.5287595,0.00022301,2]
[363889519,1748911852263,-176.5287595,0.00022301,2]
[363889521,1748911852273,-176.5287595,0.00022301,2]
[363889523,1748911852283,-1069.87,0.00022302,5]
[363889525,1748911852292,-160.48411345,0.00022384,2]
[363889527,1748911852302,-800.0,0.00022385,2]
[363889530,1748911852312,-2267.17,0.000224,2]
[363889532,1748911852321,-301.73177124,0.000224,2]
[363889534,1748911852330,-1069.87,0.00022402,3]
[363889535,1748911852339,-2000.0,0.00022438,2]
[363889537,1748911852349,-2000.0,0.00022438,2]
[363889540,1748911852359,-1000.0,0.00022438,2]
[363889541,1748911852367,-151.0,0.0002244,25]
[363889543,1748911852377,-722.8002381,0.00022452,7]
[363889545,1748911852386,-500.0,0.00022465,2]
[363889546,1748911852395,-907.43,0.00022465,2]
[363889547,1748911852406,-479.97,0.00022465,2]
[363889548,1748911852415,-765.6,0.00022465,2]
[363889549,1748911852424,-524.72,0.00022465,2]
[363889550,1748911852433,-1128.87,0.00022465,2]
[363889551,1748911852442,-880.74,0.00022465,2]
[363889552,1748911852452,-582.88,0.00022465,2]
[363889554,1748911852464,-501.38,0.00022465,2]
[363889556,1748911852475,-603.63,0.00022465,2]
[363889557,1748911852485,-632.15,0.00022465,2]
[363889558,1748911852495,-890.73,0.00022465,2]
[363889559,1748911852505,-1719.07,0.00022465,2]
[363889560,1748911852519,-1636.64,0.00022465,2]
[363889561,1748911852528,-632.4,0.00022465,2]
[363889562,1748911852538,-842.5625,0.0002247,3]
[363889563,1748911852547,-500.0,0.00022473,2]
[363889564,1748911852558,-16370.57,0.0002249,10]
[363889565,1748911852569,-160.48411345,0.00022493,2]
[363889566,1748911852578,-11433.06565435,0.000225,2]
[363889567,1748911852594,-6570.59,0.000225,2]
[363889568,1748911852974,-141.7137871,0.00016438,2]
[363891708,1748911954355,1556.0,0.00024,120]
[363891718,1748912067689,157.963143,0.00015515,2]
[363891721,1748912209518,201.187335,0.00013699,2]
[363891730,1748912664335,-2359.77764835,0.00015853,2]
[363891731,1748912664362,-417.64485583,0.00016338,2]
[363891732,1748912664389,-480.0,0.00016436,2]
[363891733,1748912664416,-300.0,0.00016437,2]
[363891734,1748912664443,-300.0,0.00016437,2]
[363891735,1748912664468,-440.0,0.00016438,2]
[363891736,1748912664494,-440.0,0.00016438,2]
[363891737,1748912664519,-440.0,0.00016438,2]
[363891738,1748912664545,-440.0,0.00016438,2]
[363891739,1748912664571,-440.0,0.00016438,2]
[363891740,1748912664596,-440.0,0.00016438,2]
[363891741,1748912664621,-440.0,0.00016438,2]
[363891742,1748912664645,-341.25330377,0.00016438,2]
[363891743,1748912664670,-440.0,0.00016438,2]
[363891744,1748912664696,-339.27419205,0.00016438,2]
[363891821,1748913031896,-427.57744535,0.00016338,2]
[363891824,1748913031906,-300.0,0.00016436,2]
[363891826,1748913031915,-1044.67674662,0.00016437,2]
[363891828,1748913031925,-300.0,0.00016437,2]
[363891830,1748913031938,-228.86638496,0.00016437,2]
[363891832,1748913031947,-391.01559843,0.00016437,2]
[363891834,1748913031959,-108.98440157,0.00016437,2]
[363891836,1748913031969,-500.0,0.00016437,2]
[363891838,1748913031981,-500.0,0.00016437,2]
[363891840,1748913031991,-500.0,0.00016437,2]
[363891842,1748913032000,-141.01559843,0.00016437,2]
[363891845,1748913032017,-358.98440157,0.00016437,2]
[363891847,1748913032027,-500.0,0.00016437,2]
[363891849,1748913032037,-500.0,0.00016437,2]
[363891851,1748913032047,-153.97785893,0.00016437,2]
[363891853,1748913032059,-346.02214107,0.00016437,2]
[363891855,1748913032067,-500.0,0.00016437,2]
[363891857,1748913032077,-500.0,0.00016437,2]
[363891859,1748913032086,-278.51494008,0.00016437,2]
[363891861,1748913032098,-221.48505992,0.00016437,2]
[363891863,1748913032108,-500.0,0.00016437,2]
[363891865,1748913032117,-500.0,0.00016437,2]
[363891868,1748913032127,-500.0,0.00016437,2]
[363891870,1748913032137,-500.0,0.00016437,2]
[363891872,1748913032146,-500.0,0.00016437,2]
[363891874,1748913032155,-500.0,0.00016437,2]
[363891876,1748913032164,-33.08907601,0.00016437,2]
[363891879,1748913032189,-466.91092399,0.00016437,2]
[363891881,1748913032198,-282.64770264,0.00016437,2]
[363891883,1748913032207,-500.0,0.00016437,2]
[363891885,1748913032217,-500.0,0.00016437,2]
[363891887,1748913032226,-500.0,0.00016437,2]
[363891889,1748913032235,-499.99999999,0.00016437,2]
[363891891,1748913032245,-400.0,0.00016438,2]
[363891893,1748913032254,-468.30236844,0.00016438,2]
[363891895,1748913032265,-430.0,0.00016438,2]
[363891897,1748913032274,-400.0,0.00016438,2]
[363891899,1748913032284,-400.0,0.00016438,2]
[363891901,1748913032295,-400.0,0.00016438,2]
[363891904,1748913032304,-504.87544928,0.00016438,2]
[363891905,1748913032314,-440.0,0.00016438,2]
[363891908,1748913032324,-440.0,0.00016438,2]
[363891910,1748913032334,-430.0,0.00016438,2]
[363891912,1748913032343,-440.0,0.00016438,2]
[363891914,1748913032353,-440.0,0.00016438,2]
[363891916,1748913032362,-440.0,0.00016438,2]
[363891918,1748913032371,-400.0,0.00016438,2]
[363891920,1748913032381,-440.0,0.00016438,2]
[363891922,1748913032390,-440.0,0.00016438,2]
[363891924,1748913032400,-440.0,0.00016438,2]
[363891926,1748913032410,-440.0,0.00016438,2]
[363891928,1748913032419,-440.0,0.00016438,2]
[363891930,1748913032429,-440.0,0.00016438,2]
[363891932,1748913032438,-402.15443476,0.00016438,2]
[363891934,1748913032447,-440.0,0.00016438,2]
[363891936,1748913032457,-440.0,0.00016438,2]